bitfinex-derivatives/quotes_ETHF0:USTF0_20251028
["timestamp","ask_amount","ask_price","bid_price","bid_amount"]
[1761675818623,0.7714,4143.2,4143.1,0.2802]
[1761675819021,0.5607,4143.2,4143.1,4.6842]
[1761675819218,0.3372,4143.2,4143.1,4.6842]
[1761675819617,0.5607,4143.2,4143.1,4.6842]
[1761675820115,0.3372,4143.2,4143.1,4.6842]
[1761675820422,0.3372,4143.2,4143.1,4.8248]
[1761675822725,0.1376,4143.5,4143.4,0.4218]
[1761675823022,3.2078,4143.6,4143.5,0.85621]
[1761675823225,3.2078,4143.6,4143.5,5.26021]
[1761675823416,0.1376,4144.5,4144.0,0.43435]
[1761675823622,0.5982,4144.5,4144.4,0.2812]
[1761675823821,1.13189973,4144.5,4144.4,0.2812]
[1761675824126,1.45299973,4144.5,4144.4,0.2812]
[1761675824518,0.9193,4144.5,4144.4,0.2812]
[1761675826131,0.9193,4144.5,4144.0,0.2812]
[1761675826132,0.4606,4144.1,4144.0,0.2812]
[1761675826625,0.7817,4144.1,4144.0,0.2812]
[1761675828723,0.7817,4144.1,4144.0,0.71555]
[1761675829829,0.7817,4144.1,4144.0,0.2812]
[1761675830331,0.7817,4144.1,4144.0,0.71555]
[1761675831224,0.3211,4143.9,4143.2,3.3484]
[1761675831422,0.7817,4143.3,4143.2,0.71564]
[1761675831633,0.7817,4143.3,4143.2,5.11964]
[1761675832533,0.5506,4143.3,4143.2,5.11964]
[1761675833030,0.5506,4143.3,4143.2,4.6852]
[1761675833426,0.5506,4143.3,4143.2,5.11964]
[1761675833623,0.5506,4143.3,4143.2,5.26024]
[1761675834532,0.5506,4143.3,4143.2,5.11964]
[1761675835734,0.5506,4143.3,4143.2,5.26024]
[1761675836029,3.2078,4143.6,4143.4,0.1406]
[1761675836336,3.2078,4143.6,4143.5,5.26021]
[1761675838939,3.5289,4144.1,4144.0,0.4218]
[1761675839138,3.5289,4144.1,4144.0,4.8258]
[1761675839337,3.7584,4144.1,4144.0,4.8258]
[1761675839537,3.7584,4144.1,4144.0,4.6852]
[1761675841041,3.7584,4144.1,4144.0,5.11956]
[1761675841238,3.7584,4144.1,4144.0,4.6852]
[1761675841836,3.5289,4144.1,4144.0,5.26016]
[1761675842529,3.7584,4144.1,4144.0,4.8258]
[1761675842734,3.7584,4144.1,4144.0,4.6852]
[1761675843240,3.7584,4144.1,4144.0,5.11956]
[1761675843440,3.9895,4144.1,4144.0,4.6852]
[1761675843841,3.9895,4144.1,4144.0,5.11956]
[1761675844339,3.5289,4144.1,4144.0,5.26016]
[1761675845040,0.3211,4144.1,4144.0,5.26016]
[1761675845336,0.3211,4144.1,4144.0,4.8258]
[1761675845641,0.5506,4144.1,4144.0,5.11956]
[1761675845841,0.5506,4144.1,4144.0,4.6852]
[1761675846039,3.9895,4144.1,4144.0,4.6852]
[1761675846231,0.2295,4143.6,4143.5,1.29902771]
[1761675846438,0.7817,4143.6,4143.5,4.5446]
[1761675847332,0.7817,4143.6,4143.5,4.404]
[1761675847543,0.3211,4143.2,4143.1,4.5446]
[1761675847742,0.7817,4143.2,4143.1,4.5446]
[1761675848543,0.9307,4143.0,4142.9,0.14286457]
[1761675848737,0.9307,4143.0,4142.9,0.00226457]
[1761675849043,4.1385,4143.0,4142.9,0.00226457]
[1761675849937,4.67280637,4143.0,4142.9,0.00226457]
[1761675850138,0.7671,4142.3,4142.2,4.6852]
[1761675851140,0.7671,4142.3,4142.2,4.68787331]
[1761675851440,0.5516,4142.3,4142.2,4.82847331]
[1761675851636,0.3348,4142.3,4142.2,4.82847331]
[1761675851939,0.7671,4142.3,4142.2,4.68787331]
[1761675852242,0.7671,4142.3,4142.2,4.54727331]
[1761675852445,0.7671,4142.3,4142.2,4.40667331]
[1761675852841,0.7671,4142.3,4142.2,0.00267331]
[1761675853838,0.7671,4142.3,4142.2,0.14327331]
[1761675854147,0.7671,4142.3,4142.2,0.28387331]
[1761675854148,0.5516,4142.3,4142.2,0.28387331]
[1761675854644,0.7671,4142.3,4142.2,0.28387331]
[1761675855240,0.7671,4142.3,4142.2,0.71841331]
[1761675855437,0.7671,4142.3,4142.2,0.14327331]
[1761675855639,0.5516,4142.3,4142.2,0.71841331]
[1761675856347,0.7671,4142.3,4142.2,0.71841331]
[1761675856947,0.7671,4142.3,4142.2,0.00267331]
[1761675860350,0.7671,4142.3,4142.2,0.14327331]
[1761675862052,3.9749,4142.3,4142.2,0.14327331]
[1761675863153,3.9749,4142.3,4142.2,0.00267331]
[1761675863652,3.9749,4142.3,4142.2,0.71841331]
[1761675864746,3.9749,4142.3,4142.2,0.57781331]
[1761675865452,3.2078,4142.3,4142.2,0.85901331]
[1761675865757,3.6401,4142.8,4142.7,0.57509]
[1761675865958,3.6401,4142.8,4142.7,4.98009]
[1761675866253,3.9749,4142.8,4142.7,4.405]
[1761675866854,3.9749,4142.8,4142.7,4.83949]
[1761675867056,3.9749,4142.8,4142.7,4.98009]
[1761675867354,0.7671,4142.6,4142.5,4.83951]
[1761675867544,0.7671,4142.6,4142.5,4.98011]
[1761675872460,0.7671,4142.6,4142.5,5.12071]
[1761675872958,0.7671,4142.6,4142.5,4.6862]
[1761675873251,0.7671,4142.3,4142.2,0.00267331]
[1761675873561,3.9749,4142.3,4142.2,0.00267331]
[1761675874051,3.9749,4142.3,4142.2,0.14327331]
[1761675874359,3.9749,4142.3,4142.2,0.28387331]
[1761675875858,3.9749,4142.3,4142.2,0.71841331]
[1761675876858,3.9749,4142.3,4142.2,0.28387331]
[1761675877060,3.9749,4142.3,4142.2,0.00267331]
[1761675877257,4.511175,4142.3,4142.2,0.00267331]
[1761675880958,4.511175,4142.3,4142.2,0.14287331]
[1761675881164,0.7916,4141.3,4141.2,1.57942771]
[1761675881361,0.1372,4141.5,4141.0,4.5452]
[1761675881362,0.7916,4141.1,4141.0,4.5452]
[1761675881860,0.7916,4140.9,4140.8,1.29902771]
[1761675882159,0.9288,4140.5,4140.3,1.29902771]
[1761675882356,0.9288,4140.5,4139.7,3.2078]
[1761675882357,0.7916,4140.1,4140.0,1.43922771]
[1761675882557,0.7916,4140.1,4140.0,4.55084686]
[1761675883062,0.7916,4140.1,4140.0,4.69104686]
[1761675883258,0.7916,4140.1,4140.0,4.55084686]
[1761675883458,0.7916,4140.1,4140.0,4.41064686]
[1761675883665,0.7916,4140.1,4140.0,4.55084686]
[1761675883864,0.3398,4140.1,4140.0,4.83124686]
[1761675884273,0.5626,4140.1,4140.0,4.69104686]
[1761675884967,0.7916,4140.1,4140.0,4.69104686]
[1761675885169,0.3398,4140.1,4140.0,4.83124686]
[1761675885866,3.2078,4140.4,4140.3,0.2804]
[1761675885867,3.4306,4140.4,4140.3,0.2804]
[1761675886169,3.4306,4140.4,4140.3,0.71514]
[1761675886368,3.7704,4140.4,4140.3,0.71514]
[1761675886569,3.9994,4140.4,4140.3,0.43474]
[1761675886769,0.7916,4140.1,4140.0,0.14284686]
[1761675886971,0.7916,4140.1,4140.0,4.41064686]
[1761675887268,0.7916,4140.1,4140.0,4.55084686]
[1761675887666,0.7916,4140.1,4140.0,5.12582686]
[1761675887865,0.5626,4140.1,4140.0,5.12582686]
[1761675888361,0.7916,4140.1,4140.0,0.71782686]
[1761675888562,0.7916,4140.1,4140.0,5.12582686]
[1761675888864,0.7916,4140.1,4140.0,5.15705824]
[1761675892368,0.7916,4140.1,4140.0,0.74905824]
[1761675892578,0.34168835,4140.9,4140.8,0.4206]
[1761675892874,0.34168835,4140.9,4140.8,4.85883138]
[1761675893076,0.79348835,4140.9,4140.8,4.71863138]
[1761675894174,0.34168835,4140.9,4140.8,4.85883138]
[1761675895680,4.00128835,4140.9,4140.8,5.15532138]
[1761675895874,4.00128835,4140.9,4140.8,5.01512138]
[1761675896070,4.00128835,4140.9,4140.8,4.87492138]
[1761675896675,4.00128835,4140.9,4140.8,5.01512138]
[1761675897379,4.00128835,4140.9,4140.8,5.15532138]
[1761675897680,3.77228835,4140.9,4140.8,5.29552138]
[1761675898990,0.00188835,4140.9,4140.8,5.29552138]
[1761675899989,0.34168835,4140.9,4140.8,5.29552138]
[1761675900382,0.00188835,4140.9,4140.8,5.29552138]
[1761675901482,0.00188835,4140.9,4140.8,5.36832138]
[1761675901685,0.3398,4141.6,4141.5,0.71502]
[1761675901990,3.5678,4142.0,4141.9,0.71498]
[1761675902191,3.5678,4142.0,4141.9,5.12398]
[1761675902488,3.9076,4142.0,4141.9,5.12398]
[1761675902688,3.9102991,4142.0,4141.9,5.12398]
[1761675902891,3.9102991,4142.0,4141.9,5.15521138]
[1761675903189,3.9102991,4142.0,4141.9,5.18829153]
[1761675903381,3.2104991,4142.0,4141.9,5.32849153]
[1761675903578,3.5502991,4142.0,4141.9,5.32849153]
[1761675904594,0.4796991,4142.0,4141.9,5.32849153]
[1761675904786,0.7024991,4142.0,4141.9,5.18829153]
[1761675906086,0.9314991,4142.0,4141.9,5.18829153]
[1761675906289,0.9314991,4142.0,4141.9,4.90789153]
[1761675906791,0.9314991,4142.0,4141.9,5.04809153]
[1761675907694,0.0026991,4142.0,4141.9,5.32849153]
[1761675908089,0.3249991,4142.0,4141.9,5.32849153]
[1761675909191,0.4560991,4142.0,4141.9,5.32849153]
[1761675909893,0.6865991,4142.0,4141.9,5.18829153]
[1761675910092,0.6865991,4142.0,4141.9,5.32879153]
[1761675910395,0.0026991,4142.0,4141.9,5.40159153]
[1761675911690,0.0026991,4142.0,4141.9,5.32879153]
[1761675911896,3.2078,4142.5,4142.4,0.85602]
[1761675912192,3.8831,4142.5,4142.4,5.18783153]
[1761675912894,3.88489739,4142.5,4142.4,5.18783153]
[1761675913592,4.11339739,4142.5,4142.4,5.04733153]
[1761675914295,4.11339739,4142.5,4142.4,5.18783153]
[1761675914692,3.53629739,4142.5,4142.4,5.32833153]
[1761675914898,0.32849739,4142.5,4142.4,5.32833153]
[1761675915597,0.00179739,4142.5,4142.4,5.32833153]
[1761675915793,0.32849739,4142.5,4142.4,5.32833153]
[1761675916599,0.67709739,4142.5,4142.4,5.04633153]
[1761675916897,0.45449739,4142.5,4142.4,5.32733153]
[1761675917297,0.67709739,4142.5,4142.4,5.18683153]
[1761675917496,0.67709739,4142.5,4142.4,5.32733153]
[1761675917693,0.45449739,4142.5,4142.4,5.32733153]
[1761675918397,0.00179739,4142.5,4142.4,5.32733153]
[1761675921199,0.45449739,4142.5,4142.4,5.32733153]
[1761675921398,0.90589739,4142.5,4142.4,5.18683153]
[1761675921797,4.11369739,4142.5,4142.4,4.47031153]
[1761675922100,4.11369739,4142.5,4142.4,0.06431153]
[1761675922303,4.64983012,4142.5,4142.4,0.06431153]
[1761675922602,0.7627,4141.6,4141.5,0.43461]
[1761675922902,0.7627,4141.6,4141.5,0.57461]
[1761675923203,0.7627,4141.6,4141.5,4.98261]
[1761675924004,3.3419,4142.0,4141.2,3.2078]
[1761675924005,0.7627,4141.3,4141.2,3.3478]
[1761675924301,0.7627,4141.3,4141.2,3.78245]
[1761675924501,0.7627,4141.3,4141.2,4.98165]
[1761675924896,0.7627,4141.3,4141.2,0.57465]
[1761675925097,0.7627,4141.3,4141.2,4.98165]
[1761675925298,0.7627,4140.9,4140.8,1.43668527]
[1761675925601,0.7627,4140.2,4140.1,4.93924527]
[1761675925905,0.7627,4140.2,4140.1,8.05156]
[1761675926203,0.7627,4140.1,4140.0,0.00264686]
[1761675926401,0.7627,4140.1,4140.0,4.41364686]
[1761675926898,0.7627,4140.1,4140.0,0.00264686]
[1761675928195,3.2078,4140.4,4139.6,3.41204686]
[1761675928196,0.7627,4139.7,4139.6,3.41204686]
[1761675928394,3.9705,4139.7,4139.6,3.41204686]
[1761675928798,0.5339,4139.1,4139.0,0.72008]
[1761675929005,0.3168,4139.1,4139.0,5.27468]
[1761675929299,0.53662617,4139.1,4139.0,5.13463406]
[1761675929497,0.76542617,4139.1,4139.0,5.13463406]
[1761675929998,0.76542617,4139.1,4139.0,5.16771421]
[1761675930298,0.76542617,4139.1,4139.0,0.47051421]
[1761675930497,0.76542617,4139.1,4139.0,0.03563421]
[1761675930804,0.76542617,4139.1,4139.0,4.58923421]
[1761675931104,0.76542617,4139.1,4139.0,4.73183421]
[1761675931303,0.53662617,4139.1,4139.0,4.73183421]
[1761675931504,0.76542617,4139.1,4139.0,0.03563421]
[1761675931700,0.76542617,4139.1,4139.0,4.44663421]
[1761675932306,0.76542617,4139.1,4139.0,4.58923421]
[1761675932604,0.76542617,4139.1,4139.0,0.03563421]
[1761675932796,0.76542617,4139.1,4139.0,4.44763421]
[1761675933606,0.76542617,4139.1,4139.0,4.73283421]
[1761675936206,0.76542617,4139.1,4139.0,4.59023421]
[1761675936407,0.76542617,4139.1,4139.0,4.44763421]
[1761675936609,0.76542617,4139.1,4139.0,0.03563421]
[1761675937807,0.7627,4138.6,4138.5,4.411]
[1761675938310,0.7627,4138.1,4138.0,3.64278]
[1761675938507,0.7627,4138.1,4138.0,3.2078]
[1761675938717,0.8968,4138.0,4137.9,4.411]
[1761675939011,0.8968,4138.0,4137.9,4.41311467]
[1761675939206,0.668,4138.0,4137.9,4.69831467]
[1761675939407,0.8968,4138.0,4137.9,4.69831467]
[1761675940217,0.3451,4138.5,4138.4,0.2858]
[1761675940409,0.5629,4138.5,4138.4,0.1429]
[1761675940605,0.3479,4138.0,4137.9,4.99101467]
[1761675940815,0.6613,4138.0,4137.9,5.13391467]
[1761675942207,0.6613,4138.0,4137.9,5.27681467]
[1761675942604,0.4503,4138.0,4137.9,5.27681467]
[1761675943504,0.3134,4138.0,4137.9,5.27681467]
[1761675943711,0.1341,4138.5,4138.4,0.86364]
[1761675944014,0.5629,4139.0,4138.9,0.1429]
[1761675944211,0.8763,4139.0,4138.9,0.2858]
[1761675944411,0.4475,4139.0,4138.9,0.4287]
[1761675944609,0.6585,4139.0,4138.9,0.2858]
[1761675945009,0.4475,4139.0,4138.9,0.86359]
[1761675945209,0.31612617,4139.1,4139.0,0.86358]
[1761675945608,0.52712617,4139.1,4139.0,0.72068]
[1761675945906,0.74492617,4139.1,4139.0,0.72068]
[1761675946520,0.74492617,4139.1,4139.0,0.75376015]
[1761675948120,0.52712617,4139.1,4139.0,0.89666015]
[1761675948513,0.52712617,4139.1,4139.0,0.75376015]
[1761675948821,0.74492617,4139.1,4139.0,0.75376015]
[1761675949320,0.74492617,4139.1,4139.0,5.16376015]
[1761675950717,0.31612617,4139.1,4139.0,5.30666015]
[1761675951822,0.31612617,4139.1,4139.0,5.30762461]
[1761675952421,0.52712617,4139.1,4139.0,5.30762461]
[1761675952721,0.31612617,4139.1,4139.0,5.30762461]
[1761675953610,0.00272617,4139.1,4139.0,5.30762461]
[1761675955123,0.4503,4140.0,4139.9,0.72059]
[1761675955318,0.4503,4140.0,4139.9,5.27249]
[1761675955917,0.4503,4140.0,4139.9,5.30653461]
[1761675956220,0.45211613,4140.0,4139.9,5.30653461]
[1761675956417,0.00181613,4140.0,4139.9,5.30653461]
[1761675958524,0.31521613,4140.0,4139.9,5.30653461]
[1761675958721,0.45211613,4140.0,4139.9,5.30653461]
[1761675959324,3.2078,4140.7,4140.6,0.4472]
[1761675959529,3.4188,4141.2,4141.1,1.21246]
[1761675959730,3.6366,4141.7,4141.6,0.5541]
[1761675959924,3.6366,4141.7,4141.6,0.7778]
[1761675960225,3.6366,4141.7,4141.6,0.81184461]
[1761675960426,3.6393743,4141.7,4141.6,0.81368313]
[1761675960732,3.6393743,4141.7,4141.6,0.84676328]
[1761675961525,3.9527743,4141.7,4141.6,0.84676328]
[1761675961724,3.9527743,4141.7,4141.6,0.29246328]
[1761675961929,3.9527743,4141.7,4141.6,0.06896328]
[1761675962821,3.9527743,4141.7,4140.2,0.98884]
[1761675962822,0.5312,4140.3,4140.2,0.98884]
[1761675963021,0.7422,4140.3,4140.2,5.27454]
[1761675963831,0.7422,4140.3,4140.2,1.21528129]
[1761675964029,0.7422,4140.3,4140.2,5.62728129]
[1761675964333,0.211,4140.6,4140.5,1.34892]
[1761675964823,3.4188,4140.9,4140.8,0.65819]
[1761675965016,3.4188,4140.9,4140.8,5.62349]
[1761675965017,3.6366,4140.9,4140.8,5.62349]
[1761675965420,3.95,4140.9,4140.8,5.62349]
[1761675965729,0.7422,4140.3,4140.2,0.00274129]
[1761675966028,0.7422,4139.4,4139.3,3.86614]
[1761675966228,0.7422,4139.4,4139.3,8.27914]
[1761675966424,0.7422,4139.4,4139.3,3.4313]
[1761675966729,0.5244,4138.8,4138.7,3.9856]
[1761675966928,0.5244,4138.8,4138.7,8.3986]
[1761675967127,0.52663954,4138.8,4138.7,8.40125493]
[1761675967427,0.52663954,4138.8,4138.7,8.83616493]
[1761675967620,0.00223954,4138.8,4138.7,8.83616493]
[1761675968622,0.00223954,4138.8,4138.7,8.90896493]
[1761675968824,0.6664,4140.0,4139.9,0.2136]
[1761675969022,0.8947,4140.0,4139.9,4.6266]
[1761675969730,0.89707325,4140.0,4139.9,4.6266]
[1761675973526,0.89707325,4140.0,4139.9,4.9682]
[1761675973734,0.00237325,4140.0,4139.9,5.1998]
[1761675974232,0.57147325,4140.0,4139.9,5.63459]
[1761675974532,0.79717325,4140.0,4139.9,5.63459]
[1761675975232,0.79717325,4140.0,4139.9,5.66767015]
[1761675976433,0.00237325,4140.0,4139.9,5.66767015]
[1761675979133,0.57147325,4140.0,4139.9,5.66767015]
[1761675979334,0.79717325,4140.0,4139.9,5.66767015]
[1761675979833,0.23197325,4140.0,4139.9,5.66767015]
[1761675980031,0.57147325,4140.0,4139.9,5.66767015]
[1761675980234,0.57147325,4140.0,4139.9,1.25467015]
[1761675980235,0.79717325,4140.0,4139.9,1.25467015]
[1761675980533,0.79717325,4140.0,4139.9,5.66367015]
[1761675981033,0.23197325,4140.0,4139.9,5.66367015]
[1761675981235,0.00237325,4140.0,4139.9,5.66367015]
[1761675982832,0.00237325,4140.0,4139.9,6.96035542]
[1761675983026,0.00237325,4140.0,4139.9,7.03315542]
[1761675983231,3.7769,4141.1,4141.0,1.23387]
[1761675983734,4.0026,4141.1,4141.0,0.226]
[1761675984031,4.0026,4141.1,4141.0,0.0661603]
[1761675984227,4.00471458,4141.1,4141.0,0.0661603]
[1761675984627,4.00471458,4141.1,4141.0,0.2921603]
[1761675985230,4.00471458,4141.1,4141.0,0.7268303]
[1761675985435,3.77901458,4141.1,4141.0,1.4343303]
[1761675985832,0.57121458,4141.1,4141.0,1.4343303]
[1761675986035,0.00211458,4141.1,4141.0,1.4343303]
[1761675987234,0.79691458,4141.1,4141.0,1.0684303]
[1761675987629,0.79691458,4141.1,4141.0,1.3000303]
[1761675988429,0.79691458,4141.1,4141.0,0.2921603]
[1761675988628,4.00471458,4141.1,4141.0,4.4751603]
[1761675989234,4.00471458,4141.1,4141.0,4.7011603]
[1761675990535,4.00471458,4141.1,4141.0,4.4751603]
[1761675991131,4.00471458,4141.1,4141.0,0.0661603]
[1761675991132,4.07751458,4141.1,4141.0,0.0661603]
[1761675991334,0.3395,4140.2,4140.0,0.226]
[1761675991529,0.7948,4140.1,4140.0,0.66077]
[1761675992030,0.7948,4139.8,4139.7,3.4338]
[1761675992228,0.4553,4139.4,4139.3,0.3416]
[1761675992431,0.4553,4139.4,4139.3,5.64405]
[1761675992432,0.7948,4139.4,4139.3,5.64405]
[1761675993041,0.7948,4139.4,4139.3,5.67713015]
[1761675993242,0.7948,4139.4,4139.3,0.03308015]
[1761675996039,0.7948,4139.9,4139.8,0.5732]
[1761675996243,0.7948,4139.9,4139.8,1.234]
[1761675996437,0.7948,4139.9,4139.8,5.646]
[1761675996733,0.7948,4139.9,4139.8,4.8696]
[1761675997040,0.7948,4139.9,4139.8,4.90268015]
[1761675997940,0.2296,4139.9,4139.8,5.24428015]
[1761675998239,0.7948,4139.9,4139.8,5.24428015]
[1761675999135,3.2078,4140.0,4139.9,0.89239]
[1761675999341,4.0026,4140.0,4139.9,0.7992]
[1761676000139,4.0026,4140.0,4139.9,0.83228015]
[1761676000443,0.7617,4140.4,4140.3,1.20534]
[1761676001137,0.7617,4140.4,4140.3,1.23842015]
[1761676001442,3.3344,4140.5,4140.4,0.7706]
[1761676001443,3.2078,4140.5,4140.4,0.7706]
[1761676001636,3.2078,4140.5,4140.4,5.1846]
[1761676002343,3.2078,4140.5,4140.4,5.21768015]
[1761676004046,0.545,4140.9,4140.8,1.20529]
[1761676004245,0.545,4140.9,4140.8,5.61829]
[1761676004545,0.545,4140.9,4140.8,0.03308015]
[1761676004546,0.7617,4140.9,4140.8,0.03308015]
[1761676004846,1.2986785,4140.9,4140.8,0.03308015]
[1761676005247,0.7617,4140.9,4140.8,0.03308015]
[1761676016553,0.7617,4140.2,4140.1,0.86656761]
[1761676016853,0.7617,4139.9,4139.8,0.86656761]
[1761676017157,0.7617,4139.6,4139.5,5.05303]
[1761676017549,0.7617,4139.6,4139.5,5.39413]
[1761676017852,0.7617,4139.6,4139.5,5.61343]
[1761676019459,0.7617,4139.6,4139.5,1.20543]
[1761676019656,3.7798,4140.0,4139.9,0.7706]
[1761676019956,3.7798,4140.0,4139.9,1.20539]
[1761676020351,4.1036,4140.0,4139.9,1.20539]
[1761676021464,3.429,4140.0,4139.9,1.20539]
[1761676021655,3.7528,4140.0,4139.9,1.20539]
[1761676022256,3.2078,4140.0,4139.9,5.61339]
[1761676022452,3.9695,4140.0,4139.9,6.47995761]
[1761676022848,3.2078,4140.0,4139.9,6.47995761]
[1761676023562,3.7528,4140.0,4139.9,6.47995761]
[1761676024463,3.9695,4140.0,4139.9,6.47995761]
[1761676025462,3.2078,4140.0,4139.9,5.61339]
[1761676026060,3.7528,4140.5,4140.4,0.7706]
[1761676026260,3.9695,4140.5,4140.4,0.7706]
[1761676026463,4.1036,4140.5,4140.4,0.7706]
[1761676026965,3.9695,4140.5,4140.4,0.7706]
[1761676027763,0.545,4140.8,4140.7,0.7706]
[1761676027964,0.545,4140.8,4140.7,1.2053]
[1761676028163,0.2212,4140.8,4140.7,1.2053]
[1761676028367,0.7962,4140.8,4140.7,0.7706]
[1761676029058,0.3471,4140.8,4140.7,1.2053]
[1761676029463,3.66811458,4141.1,4141.0,0.7795]
[1761676030061,3.44021458,4141.1,4141.0,1.34307]
[1761676030269,0.00211458,4141.1,4141.0,2.21040645]
[1761676030470,0.00211458,4141.1,4141.0,1.34307]
[1761676030675,0.00211458,4141.1,4141.0,2.64250816]
[1761676030865,0.00211458,4141.1,4141.0,1.34307]
[1761676031064,0.00211458,4141.1,4141.0,1.53211339]
[1761676031872,0.00211458,4141.1,4141.0,1.34307]
[1761676032368,0.00211458,4141.1,4141.0,1.41587]
[1761676033172,0.00211458,4141.1,4141.0,1.43921974]
[1761676033671,0.00211458,4141.1,4141.0,1.36641974]
[1761676034269,0.00211458,4141.1,4141.0,2.66517395]
[1761676035370,0.00211458,4141.1,4141.0,13.87297395]
[1761676035568,0.00211458,4141.1,4141.0,13.94577395]
[1761676035770,0.00211458,4141.1,4141.0,13.87297395]
[1761676036570,0.00211458,4141.1,4141.0,13.94577395]
[1761676036768,0.00211458,4141.1,4141.0,13.87297395]
[1761676037673,0.00211458,4141.1,4141.0,13.94577395]
[1761676037972,0.00211458,4141.1,4141.0,13.87297395]
[1761676039469,0.00211458,4141.1,4141.0,12.64701974]
[1761676040578,0.00211458,4141.1,4141.0,12.57421974]
[1761676041880,0.00211458,4141.1,4141.0,12.64701974]
[1761676043974,3.5265,4142.1,4142.0,0.43457]
[1761676044182,3.7376,4142.1,4142.0,5.62697]
[1761676044479,3.7376,4142.1,4142.0,5.65031974]
[1761676045073,3.74045624,4142.1,4142.0,5.65203339]
[1761676045668,0.3187,4141.2,4140.7,0.86432746]
[1761676045874,0.7581,4140.4,4140.3,0.86432746]
[1761676046068,0.7581,4140.1,4140.0,0.7854]
[1761676046578,0.7581,4140.1,4140.0,5.1954]
[1761676046778,0.7581,4140.1,4140.0,5.19783165]
[1761676047580,0.7581,4140.1,4140.0,0.22863165]
[1761676047877,0.7581,4140.1,4140.0,4.63863165]
[1761676048877,0.7581,4140.1,4140.0,5.19783165]
[1761676051677,3.2078,4140.3,4140.2,0.7854]
[1761676053286,3.4189,4140.3,4140.2,0.7854]
[1761676053580,3.9659,4140.3,4140.2,5.1934]
[1761676054283,0.7581,4140.3,4140.2,5.1934]
[1761676054484,0.7581,4140.3,4140.2,5.62815]
[1761676054981,0.7581,4140.3,4140.2,0.4406]
[1761676055288,0.7581,4140.3,4140.2,4.6342]
[1761676055585,3.9659,4140.3,4140.2,4.6342]
[1761676056285,3.9659,4140.3,4140.2,5.1934]
[1761676059394,3.2078,4140.3,4140.2,5.62815]
[1761676059904,3.2078,4140.3,4140.2,6.49247746]
[1761676060497,3.4281,4140.3,4140.2,6.49247746]
[1761676060699,3.7498,4140.3,4140.2,6.49247746]
[1761676061705,3.7498,4140.3,4140.2,5.1934]
[1761676061706,3.969,4140.3,4140.2,5.1934]
[1761676062001,3.7498,4140.3,4140.2,5.62815]
[1761676062203,3.4281,4140.3,4140.2,5.62815]
[1761676063808,3.2078,4140.3,4140.2,5.62815]
[1761676064009,3.969,4140.3,4140.2,5.62815]
[1761676064210,3.7498,4140.3,4140.2,5.62815]
[1761676065407,3.7498,4140.3,4140.2,6.49247746]
[1761676066008,3.7498,4140.3,4140.2,5.62815]
[1761676066412,3.2078,4140.3,4140.2,6.49247746]
[1761676067108,3.7498,4140.3,4140.2,6.49247746]
[1761676068412,3.7498,4140.3,4140.2,5.62815]
[1761676068606,0.542,4140.3,4140.2,5.62815]
[1761676070906,0.7612,4140.3,4140.2,5.62815]
[1761676071107,0.7612,4140.3,4140.2,5.1934]
[1761676072006,0.7612,4140.3,4140.2,5.62815]
[1761676072812,0.542,4140.6,4140.5,0.7529]
[1761676073114,0.7612,4140.6,4140.5,5.1609]
[1761676073913,3.969,4140.9,4140.8,0.7529]
[1761676074206,0.7612,4140.6,4140.5,0.7529]
[1761676074402,0.7612,4140.6,4140.5,5.48647538]
[1761676074605,0.7612,4140.6,4140.5,6.02877538]
[1761676074805,0.7612,4140.6,4140.5,6.46349538]
[1761676075004,0.7612,4140.6,4140.5,6.02877538]
[1761676075213,0.7612,4140.6,4140.5,5.1609]
[1761676076112,0.7612,4140.6,4140.5,5.59562]
[1761676076513,0.542,4140.6,4140.5,5.72452]
[1761676076715,3.6473,4140.9,4140.8,0.7529]
[1761676076915,3.6473,4140.9,4140.8,5.1609]
[1761676077216,3.969,4140.9,4140.8,5.1609]
[1761676078816,3.969,4140.9,4140.8,6.02963605]
[1761676079115,3.969,4140.9,4140.8,5.1609]
[1761676079313,3.969,4140.9,4140.8,6.02963605]
[1761676079515,3.969,4140.9,4140.8,6.46432605]
[1761676080718,3.2078,4140.9,4140.8,6.46432605]
[1761676080913,3.2078,4140.9,4140.8,6.89434421]
[1761676082317,3.969,4140.9,4140.8,6.89434421]
[1761676083813,3.5295,4140.9,4140.8,6.89434421]
[1761676084017,3.7498,4140.9,4140.8,5.59559]
[1761676084912,3.7498,4140.9,4140.8,6.89852903]
[1761676085117,3.969,4140.9,4140.8,5.1609]
[1761676086417,3.969,4140.9,4140.8,5.59559]
[1761676087428,3.969,4140.9,4140.8,4.8313]
[1761676087620,3.969,4140.9,4140.8,5.1599]
[1761676088023,0.7612,4140.7,4140.6,0.2106]
[1761676088324,0.7612,4140.7,4140.6,5.1479]
[1761676088920,0.7612,4140.7,4140.6,5.58261]
[1761676089118,3.2078,4140.9,4140.6,5.58261]
[1761676089317,3.7562,4140.9,4140.8,0.7671]
[1761676090023,3.2078,4140.9,4140.8,0.7671]
[1761676090319,3.7629,4140.9,4140.8,0.7671]
[1761676090522,3.7629,4140.9,4140.8,1.20179]
[1761676091819,3.7629,4140.9,4140.8,0.7671]
[1761676092013,3.984,4140.9,4140.8,1.20179]
[1761676093923,3.7629,4140.9,4140.8,1.20179]
[1761676096825,3.2078,4140.9,4140.8,1.20179]
[1761676097127,3.7629,4140.9,4140.8,1.20179]
[1761676097327,3.984,4140.9,4140.8,5.60879]
[1761676099926,3.2078,4140.9,4140.8,5.60879]
[1761676100220,3.5479,4140.9,4140.8,5.60879]
[1761676100424,3.2078,4140.9,4140.8,5.60879]
[1761676101424,3.7629,4140.9,4140.8,1.20179]
[1761676101629,3.984,4140.9,4140.8,5.60879]
[1761676102330,3.7629,4140.9,4140.8,5.60879]
[1761676103326,3.984,4140.9,4140.8,0.7671]
[1761676103528,3.984,4140.9,4140.0,1.15777165]
[1761676103529,0.7762,4140.1,4140.0,0.98780165]
[1761676103730,0.7762,4140.1,4140.0,5.39380165]
[1761676103926,0.7762,4140.1,4140.0,5.61970165]